bitfinex-derivatives/quotes_BTCF0:USTF0_20210409
["timestamp","ask_amount","ask_price","bid_price","bid_amount"]
[1617964257655,0.0504,58597.0,58596.0,1.27]
[1617964257856,0.0504,58597.0,58593.0,0.10725655]
[1617964257857,0.0504,58597.0,58595.0,0.27]
[1617964258165,0.0504,58597.0,58596.0,1.27]
[1617964258358,0.50497077,58599.0,58596.0,1.27]
[1617964258562,0.50497077,58599.0,58596.0,1.0]
[1617964258757,0.50497077,58599.0,58597.0,0.27]
[1617964258957,0.50497077,58599.0,58598.0,1.0]
[1617964259456,0.50497077,58599.0,58598.0,3.6792]
[1617964259657,0.50497077,58599.0,58598.0,4.0617]
[1617964264563,0.50497077,58599.0,58598.0,3.0617]
[1617964264962,0.50497077,58599.0,58598.0,5.5617]
[1617964265262,0.81419523,58616.0,58598.0,4.0617]
[1617964265263,0.50497876,58600.0,58598.0,4.0617]
[1617964265663,0.50497876,58600.0,58598.0,3.0617]
[1617964265863,0.50497876,58600.0,58599.0,1.0]
[1617964266362,0.10725655,58616.0,58599.0,1.0]
[1617964266363,0.50506356,58601.0,58599.0,1.37725655]
[1617964266762,0.50507886,58600.0,58599.0,0.37725655]
[1617964267363,0.50507886,58600.0,58599.0,1.37725655]
[1617964267564,0.50507886,58600.0,58599.0,2.87725655]
[1617964268167,0.50471563,58604.0,58599.0,2.87725655]
[1617964268365,0.50471563,58604.0,58599.0,1.87725655]
[1617964268568,0.50471563,58604.0,58603.0,1.0]
[1617964268967,0.50471563,58604.0,58603.0,1.27]
[1617964273469,0.10725655,58616.0,58603.0,1.27]
[1617964273470,0.5047217,58605.0,58603.0,1.27]
[1617964273869,0.5047217,58605.0,58603.0,0.27]
[1617964274070,0.50472421,58604.0,58603.0,0.27]
[1617964274270,0.50472421,58604.0,58600.0,0.27]
[1617964274671,0.50472421,58604.0,58603.0,1.0]
[1617964275171,0.50472421,58604.0,58603.0,1.27]
[1617964276673,0.50472421,58604.0,58603.0,1.77]
[1617964277073,0.10725655,58616.0,58603.0,1.77]
[1617964277074,0.50469454,58605.0,58603.0,2.77]
[1617964277673,0.50468175,58606.0,58603.0,1.77]
[1617964277873,0.50468175,58606.0,58605.0,1.0]
[1617964278074,0.50463961,58611.0,58605.0,2.5]
[1617964278274,0.50463961,58611.0,58610.0,0.10725655]
[1617964278475,0.50395469,58614.0,58610.0,1.73785655]
[1617964278675,0.50395469,58614.0,58610.0,2.00785655]
[1617964278977,0.50395469,58614.0,58613.0,1.0]
[1617964279376,0.50395469,58614.0,58613.0,1.27]
[1617964280178,0.50393874,58615.0,58613.0,1.27]
[1617964280577,0.50393874,58615.0,58613.0,0.27]
[1617964280779,0.50393874,58615.0,58614.0,1.0]
[1617964281480,0.50393874,58615.0,58614.0,1.27]
[1617964284181,0.50399577,58616.0,58614.0,1.27]
[1617964284482,0.56446484,58624.0,58614.0,1.27]
[1617964284483,0.61124719,58615.0,58614.0,1.27]
[1617964284681,0.61124719,58615.0,58614.0,0.27]
[1617964284881,0.61124719,58615.0,58614.0,1.27]
[1617964285182,0.61124719,58615.0,58614.0,1.0]
[1617964285382,0.61124719,58615.0,58614.0,1.27]
[1617964285582,0.61124719,58615.0,58614.0,0.27]
[1617964285782,0.71224719,58615.0,58614.0,0.27]
[1617964285982,0.71224719,58615.0,58610.0,0.10725655]
[1617964285983,0.71224719,58615.0,58611.0,0.27]
[1617964286283,0.20825655,58615.0,58614.0,0.27]
[1617964286684,0.20825655,58615.0,58613.0,1.0]
[1617964286881,0.20825655,58615.0,58611.0,0.27]
[1617964287182,0.71227778,58615.0,58614.0,0.27]
[1617964287383,0.71227778,58615.0,58612.0,1.0]
[1617964287583,0.20825655,58615.0,58613.0,0.27]
[1617964287883,0.50403312,58613.0,58611.0,1.0]
[1617964288082,0.0506,58612.0,58610.0,0.10725655]
[1617964288283,0.55463309,58612.0,58611.0,0.27]
[1617964288885,0.50403309,58612.0,58611.0,1.27]
[1617964289387,0.50403309,58612.0,58611.0,0.27]
[1617964289786,0.50403309,58612.0,58611.0,1.27]
[1617964289987,0.50403309,58612.0,58611.0,0.27]
[1617964290189,0.50403309,58612.0,58611.0,1.27]
[1617964290687,0.50403309,58612.0,58611.0,0.27]
[1617964290887,0.50403309,58612.0,58611.0,1.27]
[1617964291187,0.50403309,58612.0,58611.0,0.27]
[1617964292300,0.50403309,58612.0,58611.0,1.27]
[1617964293589,0.50403309,58612.0,58611.0,0.27]
[1617964293789,0.50403309,58612.0,58611.0,1.27]
[1617964294789,0.50403309,58612.0,58611.0,1.2698]
[1617964295490,0.50403309,58612.0,58611.0,0.2698]
[1617964295802,0.60278309,58612.0,58611.0,1.2698]
[1617964296500,0.60278309,58612.0,58611.0,0.2698]
[1617964296895,0.50403309,58612.0,58611.0,1.2698]
[1617964297395,0.50403309,58612.0,58611.0,0.2698]
[1617964297797,0.50403309,58612.0,58611.0,1.2698]
[1617964298900,0.50403309,58612.0,58611.0,0.2698]
[1617964299300,0.50403309,58612.0,58611.0,1.2698]
[1617964300200,0.50403309,58612.0,58611.0,0.2698]
[1617964300399,0.50403309,58612.0,58611.0,1.2698]
[1617964301101,0.50403309,58612.0,58611.0,0.2698]
[1617964301304,0.59734309,58612.0,58611.0,0.2698]
[1617964301853,0.09331,58612.0,58611.0,0.2698]
[1617964302043,0.59788452,58612.0,58611.0,0.2698]
[1617964302404,0.70514107,58612.0,58611.0,0.2698]
[1617964302913,1.27030407,58612.0,58611.0,0.2687854]
[1617964304405,1.47030407,58612.0,58611.0,0.2687854]
[1617964305340,2.97030407,58612.0,58582.0,0.29810372]
[1617964305507,3.97030407,58612.0,58582.0,0.29810372]
[1617964305712,3.97030407,58612.0,58581.0,0.29816447]
[1617964305909,1.0,58591.0,58581.0,0.29816447]
[1617964306114,1.0,58591.0,58583.0,0.27]
[1617964306115,0.50474519,58587.0,58583.0,0.27]
[1617964306431,0.10725655,58584.0,58571.0,0.40614853]
[1617964306617,1.05621371,58584.0,58571.0,0.10725655]
[1617964306813,1.05621371,58584.0,58572.0,0.27]
[1617964307148,0.50619639,58576.0,58572.0,0.27]
[1617964307413,0.44546669,58573.0,58572.0,0.27]
[1617964308411,0.55272324,58573.0,58572.0,0.27]
[1617964310614,1.05896314,58573.0,58572.0,0.27]
[1617964311213,0.55272324,58573.0,58572.0,0.27]
[1617964317965,1.55272324,58573.0,58572.0,0.27]
[1617964318134,3.84797628,58573.0,58572.0,0.27]
[1617964318525,2.34797628,58573.0,58572.0,0.27]
[1617964319028,2.25661911,58573.0,58572.0,0.26898484]
[1617964319927,3.75661911,58573.0,58572.0,0.26898484]
[1617964320237,1.25661911,58573.0,58572.0,0.26898484]
[1617964320424,2.25661911,58573.0,58572.0,0.26898484]
[1617964320625,2.82102163,58573.0,58572.0,0.26898484]
[1617964320825,4.32102163,58573.0,58552.0,0.10725655]
[1617964321226,2.87555494,58573.0,58552.0,0.10725655]
[1617964321425,1.0,58560.0,58552.0,0.10725655]
[1617964321629,0.44351293,58557.0,58553.0,0.27]
[1617964322029,0.44354081,58556.0,58553.0,0.27]
[1617964322428,0.44354081,58556.0,58545.0,0.10725655]
[1617964322429,0.10725655,58554.0,58545.0,0.10725655]
[1617964323030,0.10725655,58554.0,58546.0,0.27]
[1617964324729,0.44354628,58555.0,58546.0,0.27]
[1617964324730,0.10725655,58547.0,58546.0,0.27]
[1617964324930,0.22998655,58547.0,58546.0,0.27]
[1617964327231,0.42998655,58547.0,58546.0,0.27]
[1617964327430,0.22998655,58547.0,58546.0,0.27]
[1617964327630,0.22998655,58547.0,58529.0,1.27]
[1617964327831,0.22998655,58547.0,58531.0,1.0]
[1617964328033,0.22998655,58547.0,58546.0,0.27]
[1617964328331,0.22998655,58547.0,58532.0,0.27]
[1617964328531,0.12273,58547.0,58546.0,0.27]
[1617964328931,0.12273,58547.0,58538.0,0.10725655]
[1617964329336,0.12273,58547.0,58539.0,0.27]
[1617964329533,0.12273,58547.0,58538.0,0.10725655]
[1617964329932,0.34458,58560.0,58539.0,0.27]
[1617964330535,0.10725655,58540.0,58539.0,0.27]
[1617964335037,0.10725655,58540.0,58539.0,3.3464]
[1617964341342,0.30725655,58540.0,58539.0,3.3464]
[1617964341642,0.10725655,58540.0,58539.0,0.27]
[1617964341842,3.77745655,58540.0,58539.0,0.27]
[1617964342042,3.77745655,58540.0,58516.0,3.5127]
[1617964342356,3.3833,58530.0,58514.0,0.27]
[1617964342649,3.3833,58530.0,58510.0,0.39985741]
[1617964342650,3.3833,58530.0,58515.0,0.10725655]
[1617964342827,3.3833,58530.0,58517.0,0.27]
[1617964343004,0.2,58529.0,58517.0,0.27]
[1617964343189,0.13185,58529.0,58515.0,0.10725655]
[1617964343373,0.13185,58529.0,58516.0,0.27]
[1617964343559,0.13185,58529.0,58518.0,0.27]
[1617964343842,0.13185,58529.0,58515.0,0.10725655]
[1617964344042,0.13185,58529.0,58519.0,0.27]
[1617964344444,0.13185,58529.0,58515.0,0.10725655]
[1617964344646,0.13185,58529.0,58518.0,0.27]
[1617964344846,0.13185,58529.0,58516.0,0.27]
[1617964345046,0.13185,58529.0,58515.0,0.10725655]
[1617964345347,0.13185,58529.0,58519.0,0.27]
[1617964345547,0.13185,58529.0,58516.0,0.27]
[1617964345745,0.13185,58529.0,58520.0,0.27]
[1617964346148,0.13185,58529.0,58516.0,0.27]
[1617964346347,1.0,58524.0,58521.0,0.27]
[1617964346549,1.0,58526.0,58521.0,0.27]
[1617964346748,0.10725655,58522.0,58516.0,0.27]
[1617964347553,0.10725655,58522.0,58511.0,0.27]
[1617964348053,0.10725655,58522.0,58517.0,0.27]
[1617964348369,0.10725655,58522.0,58521.0,3.3657]
[1617964348558,0.10725655,58522.0,58521.0,3.49699]
[1617964348853,0.10725655,58522.0,58521.0,3.87424655]
[1617964349253,0.10725655,58522.0,58521.0,0.50854655]
[1617964349554,0.10725655,58522.0,58521.0,0.37725655]
[1617964351057,0.10725655,58522.0,58521.0,2.8929]
[1617964351755,0.10725655,58522.0,58521.0,0.27]
[1617964352156,0.10725655,58522.0,58515.0,2.7759]
[1617964352358,0.19988655,58522.0,58515.0,2.7759]
[1617964352657,0.19988655,58522.0,58516.0,0.27]
[1617964352858,0.19988655,58522.0,58515.0,2.7759]
[1617964353061,0.19988655,58522.0,58516.0,0.27]
[1617964360871,0.2,58521.0,58516.0,0.27]
[1617964362572,0.2,58521.0,58515.0,2.7759]
[1617964362872,2.7347,58515.0,58510.0,0.1]
[1617964363678,2.7347,58515.0,58511.0,0.27]
[1617964367175,0.10725655,58516.0,58511.0,0.27]
[1617964367574,0.10725655,58516.0,58515.0,3.4445]
[1617964368174,0.10725655,58516.0,58510.0,0.1]
[1617964368974,0.10725655,58516.0,58511.0,0.27]
[1617964371175,0.43793887,58515.0,58511.0,0.27]
[1617964372276,0.43784947,58514.0,58511.0,0.27]
[1617964372577,0.43772634,58512.0,58511.0,0.27]
[1617964377784,0.43683012,58513.0,58511.0,0.27]
[1617964381890,0.43647084,58514.0,58511.0,0.27]
[1617964383190,0.43635211,58513.0,58511.0,0.27]
[1617964384592,0.43642681,58514.0,58511.0,0.27]
[1617964384991,0.43634164,58513.0,58511.0,0.27]
[1617964386092,0.43721055,58512.0,58511.0,0.27]
[1617964388694,0.93361506,58512.0,58511.0,0.27]
[1617964390441,0.93361506,58512.0,58511.0,1.27]
[1617964390611,0.43721055,58512.0,58511.0,1.27]
[1617964391003,0.43721055,58512.0,58511.0,1.37725655]
[1617964392799,0.43721055,58512.0,58511.0,2.87725655]
[1617964393701,0.43842584,58517.0,58511.0,2.87725655]
[1617964393899,3.45782584,58517.0,58515.0,1.0]
[1617964394399,3.45782584,58517.0,58516.0,0.27]
[1617964394600,0.43842584,58517.0,58516.0,1.27]
[1617964394799,0.43842584,58517.0,58516.0,4.876]
[1617964395001,0.56026128,58517.0,58516.0,5.0292]
[1617964395203,0.56026128,58517.0,58516.0,6.2992]
[1617964395499,0.4388163,58517.0,58516.0,6.2992]
[1617964395801,0.4388163,58517.0,58516.0,5.2992]
[1617964396204,0.4391872,58518.0,58516.0,6.2992]
[1617964396404,0.4391872,58518.0,58516.0,2.9232]
[1617964396605,0.4391872,58518.0,58516.0,1.9232]
[1617964396805,0.4391872,58518.0,58517.0,0.2]
[1617964397105,0.4391872,58518.0,58517.0,2.60725655]
[1617964397313,0.50143864,58519.0,58517.0,2.87725655]
[1617964397605,0.10725655,58531.0,58517.0,2.87725655]
[1617964397606,0.50149493,58520.0,58518.0,1.7]
[1617964398006,0.50149493,58520.0,58519.0,0.27]
[1617964398306,0.10725655,58531.0,58519.0,2.77]
[1617964398307,0.50158643,58521.0,58519.0,2.77]
[1617964398506,0.44149604,58520.0,58519.0,2.77]
[1617964398706,0.44149604,58520.0,58519.0,1.77]
[1617964398906,0.44149604,58520.0,58519.0,1.97]
[1617964399205,0.44149604,58520.0,58519.0,2.97]
[1617964400312,0.44149604,58520.0,58519.0,6.43373199]
[1617964400508,0.44149604,58520.0,58519.0,6.23373199]
[1617964400810,0.44149604,58520.0,58519.0,5.9297]
[1617964401611,0.44149604,58520.0,58519.0,6.23373163]
[1617964401834,0.44149604,58520.0,58519.0,5.23373163]
[1617964402014,0.44149604,58520.0,58519.0,6.23373163]
[1617964402216,0.44149604,58520.0,58519.0,5.9297]
[1617964402510,0.44149604,58520.0,58519.0,4.4297]
[1617964402712,0.94325304,58520.0,58519.0,4.4297]
[1617964403211,0.94325304,58520.0,58519.0,5.9297]
[1617964405916,0.94325304,58520.0,58519.0,4.4297]
[1617964407520,0.10725655,58525.0,58519.0,4.4297]
[1617964407919,0.10725655,58525.0,58524.0,1.0]
[1617964408124,0.10725655,58525.0,58524.0,1.11565]
[1617964408324,0.10725655,58525.0,58524.0,4.53735]
[1617964408525,1.05576535,58525.0,58524.0,4.53735]
[1617964408721,1.05576535,58525.0,58524.0,6.03735]
[1617964409124,1.05576535,58525.0,58524.0,4.64460655]
[1617964409525,1.05576535,58525.0,58524.0,6.14460655]
[1617964412323,0.61177607,58525.0,58524.0,6.14460655]
[1617964412524,0.61177607,58525.0,58524.0,4.64460655]
[1617964412724,1.05602034,58525.0,58524.0,4.64460655]
[1617964413125,1.05600575,58525.0,58524.0,4.64460655]
[1617964415725,0.55148623,58525.0,58524.0,6.14460655]
[1617964418930,0.55148623,58525.0,58524.0,1.49290655]
[1617964419129,0.55148623,58525.0,58524.0,1.37725655]
[1617964420330,0.55148623,58525.0,58524.0,0.37725655]
[1617964420529,3.29618623,58525.0,58524.0,0.37725655]
[1617964421433,3.4185511,58525.0,58524.0,0.37725655]
[1617964422333,0.6738511,58525.0,58524.0,0.37725655]
[1617964423034,0.10725655,58525.0,58524.0,0.37725655]
[1617964423534,0.64148034,58525.0,58524.0,0.37725655]
[1617964425535,0.64148034,58525.0,58524.0,1.37725655]
[1617964425836,0.64148034,58525.0,58524.0,0.37725655]
[1617964427936,0.64148034,58525.0,58524.0,1.37725655]
[1617964430041,0.5500492,58525.0,58524.0,4.11835655]
[1617964432744,0.5500492,58525.0,58524.0,1.37725655]
[1617964435648,0.10725655,58525.0,58524.0,1.37725655]
[1617964436448,0.54973039,58525.0,58524.0,1.37725655]
[1617964440254,0.64517039,58525.0,58524.0,0.37725655]
[1617964440661,0.64517039,58525.0,58524.0,5.02585655]
[1617964441077,0.64517039,58525.0,58524.0,4.02585655]
[1617964441276,0.54973039,58525.0,58524.0,5.02585655]
[1617964441674,0.54973039,58525.0,58524.0,5.16318655]
[1617964442174,0.54973039,58525.0,58524.0,4.16318655]
[1617964442581,0.54973039,58525.0,58524.0,5.16318655]
[1617964443182,0.54973039,58525.0,58524.0,5.46711738]
[1617964444761,0.44247384,58525.0,58524.0,6.96711738]
[1617964445161,0.44247384,58525.0,58524.0,7.16711738]
[1617964445563,0.44280834,58526.0,58524.0,7.53181916]
[1617964446063,0.44285703,58527.0,58525.0,0.72955321]
[1617964446263,0.50323291,58533.0,58527.0,1.05714297]
[1617964446464,0.50321342,58535.0,58529.0,1.05714297]
[1617964446662,0.50321342,58535.0,58532.0,1.0]
[1617964446862,0.50321342,58535.0,58532.0,2.05714297]
[1617964447164,0.50306389,58536.0,58534.0,2.16439952]
[1617964447565,0.10725655,58538.0,58535.0,0.27]
[1617964447566,0.50321529,58537.0,58535.0,0.27]
[1617964447763,0.61045225,58538.0,58535.0,1.27]
[1617964447962,0.61045225,58538.0,58537.0,1.0]
[1617964448162,0.61045225,58538.0,58537.0,0.09246]
[1617964448363,0.61045225,58538.0,58537.0,1.36246]
[1617964448663,0.10725655,58538.0,58537.0,1.36246]
[1617964451068,0.61023006,58538.0,58537.0,1.36246]
[1617964451368,0.10725655,58538.0,58537.0,1.36246]
[1617964453771,0.10725655,58538.0,58537.0,0.36246]
[1617964453973,0.10725655,58538.0,58537.0,1.36246]
[1617964460483,0.22714655,58538.0,58537.0,0.36246]
[1617964460683,0.22714655,58538.0,58537.0,0.27]
[1617964461184,0.72983341,58538.0,58537.0,1.0]
[1617964461382,0.72983341,58538.0,58537.0,1.27]
[1617964461683,0.72983341,58538.0,58534.0,0.10725655]
[1617964461684,0.72983341,58538.0,58536.0,1.0]
[1617964461883,0.72983341,58538.0,58534.0,0.10725655]
[1617964462183,0.22714655,58538.0,58537.0,0.27]
[1617964462383,0.50274168,58535.0,58534.0,0.10725655]
[1617964462584,0.50274168,58535.0,58531.0,1.0]
[1617964462892,3.67194168,58535.0,58534.0,0.27]
[1617964463282,3.67194168,58535.0,58526.0,0.30384257]
[1617964463490,3.67194168,58535.0,58527.0,0.27]
[1617964463491,3.76337259,58535.0,58527.0,0.27]
[1617964463785,3.76337259,58535.0,58524.0,0.10725655]
[1617964463786,0.09143182,58534.0,58525.0,1.0]
[1617964463983,0.09143182,58534.0,58525.0,1.27]
[1617964464384,0.09143182,58534.0,58525.0,0.27]
[1617964464785,0.09143182,58534.0,58525.0,1.27]
[1617964465286,0.56265349,58537.0,58531.0,3.0186]
[1617964465586,0.56265349,58537.0,58525.0,1.27]
[1617964465785,0.56262048,58535.0,58532.0,0.27]
[1617964466103,2.5922,58533.0,58526.0,0.27]
[1617964466285,2.5922,58533.0,58525.0,1.0]
[1617964466594,0.50225945,58527.0,58525.0,1.0]
[1617964466789,0.50225945,58527.0,58526.0,0.27]
[1617964467299,0.10725655,58527.0,58526.0,0.27]
[1617964467498,0.6096079,58527.0,58526.0,0.27]
[1617964467784,3.4302079,58527.0,58526.0,0.27]
[1617964468300,3.4302079,58527.0,58526.0,1.27]
[1617964468488,3.52164083,58527.0,58526.0,1.27]
[1617964469400,3.01928948,58527.0,58526.0,1.27]
[1617964470592,3.5214234,58527.0,58526.0,1.27]
[1617964473397,3.01928948,58527.0,58526.0,1.27]
[1617964474196,0.70146359,58527.0,58526.0,1.27]
[1617964474695,0.61003066,58527.0,58526.0,3.8753]
[1617964475596,0.10725655,58527.0,58526.0,3.8753]
[1617964475796,0.10725655,58527.0,58526.0,1.27]
[1617964477396,0.60987669,58527.0,58526.0,4.2292]
[1617964477797,0.10725655,58527.0,58526.0,4.53312995]
[1617964479114,0.10725655,58527.0,58526.0,4.2292]
[1617964481102,0.10725655,58527.0,58526.0,3.2292]
[1617964481304,0.61073661,58527.0,58526.0,3.2292]
[1617964481803,0.61073661,58527.0,58526.0,3.34306]
[1617964482001,0.61073661,58527.0,58526.0,4.34306]
[1617964482604,0.10725655,58527.0,58526.0,4.34306]
[1617964483305,0.10725655,58527.0,58526.0,3.34306]
[1617964483505,0.10725655,58527.0,58526.0,3.2292]
[1617964483705,0.10725655,58527.0,58526.0,4.2292]
[1617964484006,0.61041974,58527.0,58526.0,4.2292]
[1617964484705,0.10725655,58527.0,58526.0,4.2292]
[1617964486508,0.61041065,58527.0,58526.0,4.2292]
[1617964487510,0.10725655,58527.0,58526.0,4.2292]
[1617964487910,0.10725655,58527.0,58526.0,4.53320027]
[1617964492117,0.10725655,58527.0,58526.0,4.2292]
[1617964492416,0.61064843,58527.0,58526.0,4.2292]
[1617964492615,0.61064843,58527.0,58526.0,3.2292]
[1617964492816,0.50353282,58529.0,58526.0,4.53319664]
[1617964493314,0.50365719,58530.0,58527.0,0.30399366]
[1617964493614,0.50372148,58531.0,58529.0,1.0]
[1617964494021,0.50372148,58531.0,58530.0,0.27]
[1617964494221,0.50372148,58531.0,58530.0,1.27]
[1617964494417,0.50372148,58531.0,58530.0,1.0]
[1617964494713,0.50372148,58531.0,58530.0,1.27]
[1617964495316,0.50372148,58531.0,58530.0,1.37725655]
[1617964496418,0.50372148,58531.0,58530.0,4.89335655]
[1617964504328,0.09142244,58536.0,58530.0,4.89335655]
[1617964504329,0.50680601,58532.0,58530.0,5.19711935]
[1617964504733,0.50680395,58531.0,58530.0,3.89335655]
[1617964505435,0.50680395,58531.0,58530.0,4.89335655]
[1617964515942,0.50680395,58531.0,58530.0,3.89335655]
[1617964516544,0.50680395,58531.0,58530.0,4.89335655]
[1617964517645,0.50680395,58531.0,58530.0,3.89335655]
[1617964517944,0.50680395,58531.0,58530.0,4.89335655]
[1617964518644,0.50680395,58531.0,58530.0,3.89335655]
[1617964518845,0.50680395,58531.0,58530.0,4.89335655]
[1617964521452,0.50680395,58531.0,58530.0,3.89335655]
[1617964521851,0.50680395,58531.0,58530.0,4.89335655]
[1617964526556,1.07515011,58531.0,58530.0,4.89335655]
[1617964526959,0.50680395,58531.0,58530.0,4.89335655]
[1617964527471,1.07527202,58531.0,58530.0,4.89335655]
[1617964528063,0.50680395,58531.0,58530.0,4.89335655]
[1617964529460,1.07529161,58531.0,58530.0,4.89335655]
[1617964531761,1.07529161,58531.0,58530.0,4.7861]
[1617964541676,1.07529161,58531.0,58530.0,0.27]
[1617964542075,4.44949161,58531.0,58525.0,0.27]
[1617964542475,4.44949161,58531.0,58530.0,0.27]
[1617964542775,0.5683725,58529.0,58526.0,1.0]
[1617964542974,0.5683725,58529.0,58526.0,0.27]
[1617964543175,0.50748644,58527.0,58524.0,0.10725655]
[1617964543375,0.50748644,58527.0,58525.0,0.27]
[1617964543574,0.56837263,58528.0,58526.0,1.0]
[1617964543976,0.56828891,58529.0,58527.0,1.27]
[1617964544378,0.50741235,58528.0,58525.0,0.27]
[1617964544778,0.50741278,58526.0,58525.0,1.0]
[1617964544979,0.50741278,58526.0,58524.0,0.10725655]
[1617964545180,0.50741278,58526.0,58525.0,1.27]
[1617964545381,0.50741278,58526.0,58525.0,0.27]
[1617964545682,0.61466933,58526.0,58525.0,0.27]
[1617964546082,1.06112323,58526.0,58525.0,0.27]
[1617964546282,1.06112323,58526.0,58525.0,1.27]
[1617964546683,1.06112323,58526.0,58525.0,0.27]
[1617964547082,1.06112323,58526.0,58525.0,1.27]
[1617964547282,1.06112323,58526.0,58525.0,0.27]
[1617964547982,1.06112323,58526.0,58525.0,1.27]
[1617964548384,1.07992323,58526.0,58525.0,0.27]
[1617964549092,1.07992323,58526.0,58525.0,1.27]
[1617964549286,1.07992323,58526.0,58525.0,0.27]
[1617964554086,1.07992323,58526.0,58525.0,4.3186]
[1617964554087,1.648141,58526.0,58525.0,4.3186]
[1617964554386,1.648141,58526.0,58525.0,3.3186]
[1617964555990,1.648141,58526.0,58525.0,0.27]
[1617964556191,4.982841,58526.0,58525.0,0.27]
[1617964556722,4.982841,58526.0,58513.0,1.0]
[1617964556723,5.07429305,58526.0,58523.0,0.27]
[1617964556892,5.07429305,58526.0,58521.0,0.27]
[1617964557290,5.07429305,58526.0,58517.0,0.27]
[1617964557291,1.51903323,58524.0,58517.0,0.27]
[1617964557492,1.63874323,58524.0,58522.0,0.27]
[1617964557691,0.11971,58524.0,58522.0,0.27]
[1617964557889,0.10725655,58512.0,58511.0,0.27]
[1617964558090,0.23345655,58512.0,58510.0,0.1]
[1617964558491,0.95154495,58511.0,58510.0,0.1]
[1617964558690,0.44541048,58511.0,58510.0,0.1]
[1617964558890,0.95152577,58511.0,58510.0,1.37]
[1617964559093,0.44541048,58511.0,58510.0,0.37]
[1617964559294,0.95158777,58511.0,58510.0,0.37]
[1617964562701,0.95158777,58511.0,58510.0,1.37]
[1617964563601,0.95158777,58511.0,58510.0,0.37]
[1617964565604,0.95158777,58511.0,58510.0,1.37]
[1617964566504,0.95158777,58511.0,58510.0,0.37]
[1617964566706,0.95158777,58511.0,58510.0,1.37]
[1617964568609,0.95158777,58511.0,58510.0,0.37]
[1617964569010,0.95158777,58511.0,58510.0,1.37]
[1617964570614,0.97038777,58511.0,58510.0,1.37]
[1617964571713,0.46421048,58511.0,58510.0,1.37]
[1617964571913,0.46421048,58511.0,58510.0,1.3698]
[1617964572637,0.46406949,58511.0,58510.0,1.3698]
[1617964576719,0.58733949,58511.0,58510.0,1.3698]
[1617964578825,3.75233949,58511.0,58510.0,1.3698]
[1617964579425,3.84380161,58511.0,58510.0,1.3698]
[1617964583028,3.84380161,58511.0,58510.0,0.3698]
[1617964583330,3.84380161,58511.0,58510.0,1.3698]
[1617964583730,4.35002998,58511.0,58510.0,1.3698]
[1617964584242,4.35002998,58511.0,58510.0,0.3698]
[1617964584432,4.35002998,58511.0,58510.0,1.3698]
[1617964585132,4.35002998,58511.0,58510.0,0.3698]
[1617964591039,4.91732772,58511.0,58510.0,0.3698]
[1617964593340,4.91732772,58511.0,58510.0,0.27]
[1617964593842,4.91732772,58511.0,58509.0,0.27]
[1617964594041,4.91732772,58511.0,58510.0,0.27]
[1617964594442,4.91732772,58511.0,58509.0,0.27]
[1617964594642,4.35002998,58511.0,58510.0,0.27]
[1617964594941,4.35002998,58511.0,58508.0,0.10725655]
[1617964595143,4.91696287,58511.0,58509.0,0.27]
[1617964595343,4.91696287,58511.0,58510.0,0.27]
[1617964595543,3.30707,58511.0,58508.0,0.10725655]
[1617964595744,3.30707,58511.0,58509.0,0.27]
[1617964595944,5.0562579,58511.0,58510.0,0.27]
[1617964596144,5.0562579,58511.0,58508.0,0.10725655]
[1617964596344,0.95220912,58510.0,58509.0,0.27]
[1617964597046,0.31767643,58510.0,58509.0,0.27]
[1617964597346,1.04369032,58510.0,58509.0,0.27]
[1617964597847,1.61094715,58510.0,58509.0,0.27]
[1617964599446,4.46834715,58510.0,58509.0,0.27]
[1617964600247,4.46834715,58510.0,58503.0,0.27]
[1617964600748,4.46834715,58510.0,58501.0,0.27]
[1617964601047,0.56726244,58508.0,58504.0,0.27]
[1617964601250,0.56726244,58508.0,58501.0,0.27]
[1617964601449,0.95222136,58502.0,58500.0,1.0]
[1617964601650,0.95222136,58502.0,58499.0,0.10725655]
[1617964601850,0.56726244,58508.0,58501.0,1.27]
[1617964602051,0.10725655,58502.0,58501.0,1.0]
[1617964602452,1.0594678,58502.0,58501.0,3.8274]
[1617964603757,0.95221125,58502.0,58501.0,3.8274]
[1617964604256,0.44572237,58502.0,58501.0,3.8274]
[1617964605759,0.44572237,58502.0,58501.0,4.12929767]
[1617964606160,0.44572237,58502.0,58501.0,4.4921289]
[1617964606362,3.19602237,58502.0,58501.0,4.4921289]
[1617964606762,3.19602237,58502.0,58501.0,4.12929767]
[1617964607178,3.28749043,58502.0,58501.0,4.12929767]
[1617964607962,3.28749043,58502.0,58501.0,3.12929767]
[1617964608264,3.90196147,58502.0,58501.0,4.12929767]
[1617964610367,2.85755655,58502.0,58501.0,4.12929767]
[1617964611067,3.81113764,58502.0,58501.0,4.12929767]
[1617964611570,1.06083764,58502.0,58501.0,4.12929767]
[1617964611969,0.10725655,58502.0,58501.0,4.12929767]
[1617964612570,1.06082568,58502.0,58501.0,4.12929767]
[1617964615773,1.17243568,58502.0,58501.0,4.12929767]
[1617964616574,1.17243568,58502.0,58501.0,1.31189767]
[1617964617173,1.26390638,58502.0,58501.0,1.31189767]
[1617964618178,1.26390638,58502.0,58501.0,1.01]
[1617964619481,1.28270638,58502.0,58501.0,1.01]
[1617964619884,1.28270638,58502.0,58501.0,0.01]
[1617964620282,4.12840638,58502.0,58501.0,1.0]
[1617964620581,4.12840638,58502.0,58500.0,1.27]
[1617964620781,4.12840638,58502.0,58501.0,0.27]
[1617964621181,4.12840638,58502.0,58501.0,1.27]
[1617964621382,1.28270638,58502.0,58501.0,3.8406]
[1617964621582,1.17109638,58502.0,58501.0,3.5706]
[1617964621882,1.17109638,58502.0,58501.0,3.8406]
[1617964622084,1.07962568,58502.0,58501.0,3.8406]
[1617964623804,4.48642568,58502.0,58501.0,1.27]
[1617964624489,4.57790423,58502.0,58501.0,0.27]
[1617964624691,4.57790423,58502.0,58501.0,1.27]
[1617964624889,1.17110423,58502.0,58501.0,1.0]